Cogmind - Beta 12 @@@ ROGUE MODE // 2023.04.28 @ 01:31:45 Player: MAC-Bot 2145 Result: Destroyed by G-47 Trooper with Particle Gun Performance ------------- Evolutions (2) 1000 Regions Visited (4) 800 Robots Destroyed (26) 130 Value Destroyed (582) 582 Prototype IDs (2) 40 Alien Tech Used (0) 0 Bonus (0) 0 TOTAL SCORE: 2552 Bonus ------- None Cogmind --------- Core Integrity 0/550 Matter 24/300 Energy 100/100 System Corruption 0% Temperature Cool (9) Movement Core (200) Ox3 Location -8/Materials Parts ------- > --- POWER (1) -------- (None) > --- PROPULSION (4) --- (None) > --- UTILITY (4) ------ Medium Storage Unit Signal Interpreter > --- WEAPON (2) ------- (None) > --- INVENTORY (10) --- Ion Engine Light Ion Engine Airjet Large Storage Unit Lightning Gun Lightning Gun Particle Cannon Mining Laser Peak State ------------ > --- POWER ------------ Ion Engine > --- PROPULSION ------- Aluminum Leg Aluminum Leg Flight Unit > --- UTILITY ---------- Small Storage Unit Signal Interpreter Hardened Heavy Armor Plating > --- WEAPON ----------- Particle Cannon Particle Cannon > --- INVENTORY -------- Compact Wheel Flight Unit Lightning Gun Light EM Pulse Cannon Particle Cannon Rocket Launcher Mining Laser [Rating: 19] Favorites ----------- Power Light Ion Engine Engine Light Ion Engine Power Core Light Nuclear Core Propulsion Aluminum Leg Leg Aluminum Leg Wheel Compact Wheel Flight Unit Flight Unit Utility Small Storage Unit Device Terrain Scanner Storage Small Storage Unit Processor Signal Interpreter Protection Hardened Heavy Armor Plating Weapon Particle Cannon Energy Gun Small Laser Energy Cannon Particle Cannon Ballistic Gun Light Assault Rifle Launcher Rocket Launcher Build | -11 -10 -10 -9 -8 ------- Run | Jun Mat Min Mat Mat Slots Evolved 4 | . . . 2 2 Power . | . . . . . Propulsion 2 | . . . 1 1 Utility 2 | . . . 1 1 Weapon . | . . . . . Parts Attached 45 | 4 6 1 18 16 Power 5 | 1 1 . 1 2 Engine 4 | 1 1 . 1 1 Core 1 | . . . . 1 Reactor . | . . . . . Propulsion 13 | 2 . . 9 2 Treads . | . . . . . Leg 6 | . . . 6 . Wheel 4 | 2 . . . 2 Hover . | . . . . . Flight 3 | . . . 3 . Utility 10 | 1 . . 3 6 Device 1 | . . . 1 . Storage 6 | 1 . . . 5 Processor 2 | . . . 2 . Hackware . | . . . . . Protection 1 | . . . . 1 Artifact . | . . . . . Weapon 17 | . 5 1 5 6 Energy Gun 6 | . 3 . 2 1 Energy Cannon 7 | . . . 3 4 Ballistic Gun 1 | . 1 . . . Ballistic Cannon . | . . . . . Launcher 3 | . 1 1 . 1 Special Weapon . | . . . . . Impact Weapon . | . . . . . Slashing Weapon . | . . . . . Piercing Weapon . | . . . . . Special Melee Weapon . | . . . . . Unidentified Prototypes 2 | . . . 2 . Parts Lost 15 | . 4 1 3 7 Power 3 | . 1 . 1 1 Propulsion 6 | . 1 . 2 3 Utility . | . . . . . Weapon 6 | . 2 1 . 3 Highest Loss Streak 6 | . 4 1 2 6 To Critical Strikes . | . . . . . Average Slot Usage (%) 76 | . 79 64 87 66 Engine 10 | . 14 14 10 7 Leg 14 | . . . 28 8 Wheel 8 | . 23 14 . 8 Storage 11 | . 14 14 11 9 Processor 8 | . . . 13 9 Energy Gun 5 | . 19 7 2 2 Energy Cannon 8 | . . . 12 10 Ballistic Gun 1 | . 6 6 . . Launcher 4 | . . 7 6 4 Naked Turns . | . . . . . Heaviest Build 38 | 8 13 13 18 38 Greatest Support 30 | 26 26 16 30 26 Greatest Overweight (x) 7 | . . . . 7 Average Overweight (x) . | . . . . . Largest Inventory Capacity 25 | 8 8 8 8 25 Average Capacity 8 | 6 8 8 8 9 Most Carried 10 | 8 8 8 8 10 Average Carried 7 | 4 6 7 6 8 Final Capacity 10 | 8 8 8 8 10 Final Carried 8 | 8 7 8 7 8 Class Distribution -------------------- 100% | Mutant Dominant Class ---------------- Mutant | -10/Materials Mutant | -10/Mines Mutant | -9/Materials Mutant | -8/Materials Resources | -11 -10 -10 -9 -8 ----------- Run | Jun Mat Min Mat Mat Matter Collected 490 | 223 90 34 123 20 Remotely . | . . . . . Salvage Created 446 | . 109 40 157 140 Parts 35 | . 8 2 13 12 Haulers Intercepted . | . . . . . Recyclers Shooed 1 | . . . . 1 Parts Field Recycled . | . . . . . Retrieved Matter . | . . . . . Parts Self-Destructed . | . . . . . Prevented . | . . . . . Kills | -11 -10 -10 -9 -8 ------- Run | Jun Mat Min Mat Mat Combat Hostiles Destroyed 23 | . 6 2 8 7 Guns 4 | . 4 . . . Cannons 9 | . . . 7 2 AOE 9 | . 2 2 . 5 Classes Destroyed 6 | . 2 1 1 2 Worker 1 | . . . . 1 Builder 1 | . . . . 1 Watcher 1 | . . . 1 . Swarmer 14 | . 3 . 7 4 Grunt 7 | . 3 . 1 3 Sentry 2 | . . 2 . . Best Kill Streak 6 | . 3 2 4 6 Combat Bots Only 4 | . 3 2 4 4 Max Kills in Single Turn 2 | . 2 2 2 2 Gunslinging . | . . . . . Exploded 2 | . 2 2 . 1 Melee . | . . . . . Uniques/NPCs Destroyed . | . . . . . Combat | -11 -10 -10 -9 -8 -------- Run | Jun Mat Min Mat Mat Damage Taken 2201 | . 431 184 328 1258 Core 799 | . 97 62 82 558 Absorbed by Shields . | . . . . . Core Remaining (%) 71 | 100 . 36 79 . Volleys Fired 57 | . 15 4 18 20 Largest 2 | . 2 1 2 2 Hottest 136 | . 60 33 136 123 Shots Fired 89 | . 27 4 31 27 Gun 31 | . 25 . . 6 Cannon 41 | . . . 31 10 Launcher 17 | . 2 4 . 11 Special . | . . . . . Kinetic 13 | . 13 . . . Thermal 45 | . 5 . 31 9 Explosive 17 | . 2 4 . 11 Electromagnetic 14 | . 7 . . 7 Robot Hit Streak 10 | . 5 9 10 6 Robot Miss Streak 4 | . 3 . 4 4 Penetration Max . | . . . . . Secondary Targets 3 | . 3 . . . Max Gunslinging Chain 1 | . 1 . . . Shots Hit Robots 47 | . 17 4 13 13 Core Hits 37 | . 11 4 9 13 Critical Kills 1 | . . . 1 . Critical Parts Destroyed . | . . . . . Critical Strikes 1 | . . . 1 . Meltdown 1 | . . . 1 . Melee Attacks . | . . . . . Impact . | . . . . . Slashing . | . . . . . Piercing . | . . . . . Sneak Attacks . | . . . . . Combat Hostiles . | . . . . . Follow-up Attacks . | . . . . . Damage Inflicted 1783 | . 417 182 316 868 Guns 232 | . 179 . . 53 Cannons 394 | . . . 309 85 Explosions 1150 | . 238 182 . 730 Melee . | . . . . . Ramming 7 | . . . 7 . Kinetic 62 | . 62 . . . Thermal 448 | . 54 . 309 85 Explosive 1150 | . 238 182 . 730 Electromagnetic 116 | . 63 . . 53 Impact . | . . . . . Slashing . | . . . . . Piercing . | . . . . . Highest Corruption . | . . . . . Average Corruption . | . . . . . Corruption Purged . | . . . . . Corruption Blocked . | . . . . . Overload Shots . | . . . . . Overflow Damage 12 | . 10 . 1 1 Projectiles 1 | . . . 1 . Explosions 11 | . 10 . . 1 Melee . | . . . . . Knockbacks . | . . . . . Impact . | . . . . . Kinetic . | . . . . . Secondary . | . . . . . Self-Inflicted Damage 20 | . 17 . . 3 Shots 3 | . 2 . . 1 Rammed . | . . . . . Targets Rammed 5 | . . . 5 . Kicked 5 | . . . 5 . Crushed . | . . . . . Highest Temperature 297 | . 129 30 297 222 Average Temperature 83 | . 58 16 115 66 Received Heat Transfer 825 | . 198 72 24 531 Siege Activations . | . . . . . Robots Corrupted . | . . . . . Combat Hostiles . | . . . . . Parts Fried 1 | . . . . 1 Impact Corruptions . | . . . . . Robots Melted 1 | . . . 1 . Combat Hostiles 1 | . . . 1 . Parts Melted 2 | . . . 2 . Heat Transferred 828 | . 125 . 555 148 Parts Sabotaged . | . . . . . Parts Stolen . | . . . . . Parts Stripped . | . . . . . Power Chain Reactions . | . . . . . Missiles Intercepted . | . . . . . Alert | -11 -10 -10 -9 -8 ------- Run | Jun Mat Min Mat Mat Peak Influence 360 | . 213 141 281 360 Initial 82 | . . 82 54 48 Average 107 | . 82 111 117 120 Maximum Alert Level 1 | . 1 . 1 1 Low Security (%) 90 | 100 96 100 86 89 Level 1 9 | . 3 . 13 10 Level 2 . | . . . . . Level 3 . | . . . . . Level 4 . | . . . . . Level 5 . | . . . . . High Security . | . . . . . Max Security . | . . . . . Squads Dispatched 4 | . 2 . . 2 Investigation 1 | . 1 . . . Extermination . | . . . . . Reinforcement 3 | . 1 . . 2 Assault . | . . . . . Garrison . | . . . . . Intercept . | . . . . . Searches Triggered . | . . . . . Construction Impeded 1 | . . . . 1 Haulers Reinforced . | . . . . . Active Scanning Responses . | . . . . . Cargo Convoy Interrupts . | . . . . . Stealth | -11 -10 -10 -9 -8 --------- Run | Jun Mat Min Mat Mat Distress Signals 2 | . 2 . . . Communications Jammed . | . . . . . Distress Signals . | . . . . . Times Spotted 41 | . 10 2 11 18 Peak Tracking Total 9 | . 7 2 4 9 Tactical Retreats 2 | . 1 . 1 . Traps | -11 -10 -10 -9 -8 ------- Run | Jun Mat Min Mat Mat Traps Triggered 1 | . 1 . . . Indirectly . | . . . . . Trap Hack Attempts . | . . . . . Triggered . | . . . . . Disarmed . | . . . . . Reprogrammed . | . . . . . Reused . | . . . . . Traps Extracted . | . . . . . Installed . | . . . . . Triggered . | . . . . . Machines | -11 -10 -10 -9 -8 ---------- Run | Jun Mat Min Mat Mat Machines Disabled 8 | . 2 2 2 2 Max in Single Turn 1 | . 1 1 1 1 Machines Repaired . | . . . . . Machines Sabotaged . | . . . . . Overloaded Fab Kills . | . . . . . Hacking | -11 -10 -10 -9 -8 --------- Run | Jun Mat Min Mat Mat Machines Accessed 6 | . 1 . 3 2 Terminals 4 | . 1 . 1 2 Fabricators . | . . . . . Repair Stations . | . . . . . Recycling Units 1 | . . . 1 . Scanalyzers 1 | . . . 1 . Garrison Access . | . . . . . Total Hacks 20 | . 2 . 12 6 Successful 16 | . . . 12 4 Failed 4 | . 2 . . 2 Catastrophic . | . . . . . Database Lockouts . | . . . . . Manual . | . . . . . Terminals 11 | . 2 . 3 6 Fabricators . | . . . . . Repair Stations . | . . . . . Recycling Units 2 | . . . 2 . Scanalyzers 7 | . . . 7 . Garrison Access . | . . . . . Terminal Hacks 7 | . . . 3 4 Record 4 | . . . 2 2 Alert Level 2 | . . . 1 1 Zone Layout 1 | . . . . 1 Fabricator Hacks . | . . . . . Repair Station Hacks . | . . . . . Recycling Unit Hacks 2 | . . . 2 . Report Inventory 1 | . . . 1 . Retrieve Matter 1 | . . . 1 . Scanalyzer 7 | . . . 7 . Insert Component 3 | . . . 3 . Analyze 4 | . . . 4 . Garrison Access Hacks . | . . . . . Unauthorized Hacks . | . . . . . Terminals . | . . . . . Fabricators . | . . . . . Repair Stations . | . . . . . Recycling Units . | . . . . . Scanalyzers . | . . . . . Garrison Access . | . . . . . Data Cores Recovered . | . . . . . Used . | . . . . . Hacking Detections 3 | . 1 . 2 . Full Trace Events . | . . . . . Feedback Events . | . . . . . Feedback Blocked . | . . . . . Robot Schematics Acquired . | . . . . . Robots Built . | . . . . . Authchips . | . . . . . Time . | . . . . . Total Robot Build Rating . | . . . . . Part Schematics Acquired 3 | . . . 3 . Parts Built . | . . . . . Authchips . | . . . . . Time . | . . . . . Total Part Build Rating . | . . . . . Parts Repaired . | . . . . . Time . | . . . . . Parts Recycled . | . . . . . Recycled Matter . | . . . . . Retrieved Matter . | . . . . . Retrieved Components . | . . . . . Parts Scanalyzed 3 | . . . 3 . Part Schematics Acquired 3 | . . . 3 . Parts Damaged . | . . . . . Bothacking | -11 -10 -10 -9 -8 ------------ Run | Jun Mat Min Mat Mat Used RIF Installer . | . . . . . Robots Hacked . | . . . . . Non-combat . | . . . . . Combat . | . . . . . Robot Hacks Applied . | . . . . . Relay Couplers Released . | . . . . . Fabnet Peak Effective % . | . . . . . Robots Rewired . | . . . . . Allies Hacked . | . . . . . Hacks Repelled . | . . . . . Allies | -11 -10 -10 -9 -8 -------- Run | Jun Mat Min Mat Mat Total Allies . | . . . . . Largest Group . | . . . . . Highest-Rated Group . | . . . . . Highest-Rated Ally . | . . . . . Total Orders . | . . . . . Ally Attacks . | . . . . . Total Damage . | . . . . . Kills . | . . . . . Allies Corrupted . | . . . . . Allies Melted . | . . . . . Intel | -11 -10 -10 -9 -8 ------- Run | Jun Mat Min Mat Mat Robot Analysis Total . | . . . . . Derelict Logs Recovered . | . . . . . Drone Launches . | . . . . . Drone Recoveries . | . . . . . Exploration | -11 -10 -10 -9 -8 ------------- Run | Jun Mat Min Mat Mat Turns Passed 1295 | 53 193 148 478 423 Spaces Moved 864 | 44 131 131 296 262 Core 18 | 10 . . . 8 Treads . | . . . . . Legs 400 | . . . 296 104 Wheels 446 | 34 131 131 . 150 Hover . | . . . . . Flight . | . . . . . Fastest Speed 50 | 50 90 100 120 90 Average Speed 113 | 84 93 100 120 127 Slowest Speed 400 | 100 100 100 120 400 Overloaded Moves . | . . . . . Propulsion Burnouts . | . . . . . Robots Hopped . | . . . . . Cave-ins Triggered . | . . . . . Exploration Rate (%) 26 | 3 29 49 26 25 Regions Visited 4 Branch Regions 1 Pre-discovered Areas . | . . . . . Known Exits Taken 1 | . . . 1 . Unknown Exits Taken 3 | 1 1 1 . . Scrap Searched . | . . . . . Spaces Dug . | . . . . . Terrain Destroyed 114 | . 11 13 . 90 Melee . | . . . . . Projectile 2 | . . . . 2 AOE 112 | . 11 13 . 88 Terrain Rammed . | . . . . . Walls Destroyed . | . . . . . Machines Disabled . | . . . . . Actions | -11 -10 -10 -9 -8 --------- Run | Jun Mat Min Mat Mat Total 1089 | 59 177 143 387 323 Wait 55 | . 18 7 29 1 Move 860 | 43 130 130 295 262 Hop . | . . . . . Pick Up 45 | 12 6 1 14 12 Fast Attach . | . . . . . Attach 23 | 4 5 . 10 4 Detach . | . . . . . Swap 23 | . 1 1 9 12 Drop 21 | . 2 . 7 12 Fire 57 | . 15 4 18 20 Melee . | . . . . . Ram . | . . . . . Kick 5 | . . . 5 . Crush . | . . . . . Escape Stasis . | . . . . . Rewire . | . . . . . Trap . | . . . . . Miscellaneous . | . . . . . Route ------- -11/Junkyard -10/Materials -10/Mines -9/Materials -8/Materials (discovered 1 exit: [Fac]) History --------- Turn | Location | Event 9 | -11/Junkyard | Discovered new exit (range 15) 54 | -11/Junkyard | Entered Materials 164 | -10/Materials | Discovered new exit (range 12) 213 | -10/Materials | Lost 4 parts (1p1n2w) 247 | -10/Materials | Entered Mines 254 | -10/Mines | Received a Rocket Launcher from a helpful Derelict 313 | -10/Mines | Build established: Mutant 313 | -10/Mines | Core integrity fell below 50% 359 | -10/Mines | Discovered new exit (range 6) 395 | -10/Mines | Entered Materials 395 | -9/Materials | Evolved 2 slots: Propulsion x1, Utility x1 683 | -9/Materials | Discovered new exit (range 16) 865 | -9/Materials | Identified exit to Materials 873 | -9/Materials | Entered another Materials area 873 | -8/Materials | Evolved 2 slots: Propulsion x1, Utility x1 1193 | -8/Materials | Discovered new exit (range 12) 1286 | -8/Materials | Core integrity fell below 50% 1292 | -8/Materials | Core integrity fell below 20% 1296 | -8/Materials | Destroyed by G-47 Trooper with Particle Gun Last Messages --------------- area. The unstable cave ceiling collapses. G-50 Soldier destroyed. The unstable cave ceiling collapses. Critical hit (Burn: +37). Com. Wheel destroyed. Critical hit (Burn: +37). R-06 Scavenger collects Particle Gun. Rocket Launcher destroyed. Lgt. EM Pulse Cannon destroyed. The unstable cave ceiling collapses. U-05 Engineer lays Concrete. The unstable cave ceiling collapses. U-05 Engineer builds a Wall. Lgt. Nuclear Core destroyed. U-05 Engineer lays Concrete. U-05 Engineer builds a Wall. Hvy. Particle Cannon destroyed. U-05 Engineer builds a Wall. U-05 Engineer lays Concrete. Map ----- +----------------------------------------------------+ | | | | | | | | | | | | | | | | | | | | | | | | | | | ############################?????????????????????? | | # ## """"" #?????????????????????? | | # "T" ## """"" !#?????????????????????? | | # ## """"" #?????????????????????? | | # ## #?????????????????????? | | ###+###### * #?????????????????????? | | ##+### #??#######/######?????????????????????? | | # ######### #??########?+?????????? | | T o ### ! # ?????????? | | # ############## # ????????? | | ###### #?# ## # ????????? | | ?????#######?# ## ## ?????????? | | ?????????????# # @ ## ## # ???????? | | ###??????????# rg tu ????????? | | #??????????# #gsTrs ????????? | | < #??????????# # # ????????? | | #??????????# ##g # # ????????? | | #??????????# ## g# #" ?????????? | | #??????????#########+#; #####?" ??????????? | | #################### #????????? ??????????? | | # / #?????????????????????? | | # """ ##############+##?????????????????????? | | # "T" #?????????# ?????????????????????? | | # #?????????# !!=???????????????????? | | +??????????????????# !!=#??????????????????? | | #??????????????????# !!=#??????????????????? | | #??????????????????# #??????????????????? | | ? #??????????????????# #??????????????????? | | ?????????????????????# #??????????????????? | | ?????????????????????# #??????????????????? | | ?????????????????????# / #??????????????????? | | ?????????????????????#### #####??????????????????? | | ?????????????????????????#???????????????????????? | | ?????????????????????????????????????????????????? | | ?????????????????????????????????????????????????? | | ?????????????????????????????????????????????????? | | ?????????????????????????????????????????????????? | +----------------------------------------------------+ Best States ------------- Heat Dissipation 31 Energy Generation 14 Energy Capacity 250 Matter Stores 300 Matter Capacity 300 Sight Range 18 Terrain Scan Range 14 Terrain Scan Density 10 Armor Coverage 600 Evasion (%) 55 Item Schematics ----------------- Com. Wheel | -9/Materials | Scanalyzed Ion Engine | -9/Materials | Scanalyzed Mining Laser | -9/Materials | Scanalyzed Robot Schematics ------------------ None Fabricated ------------ Nothing Alien Tech Used ----------------- None Achievements -------------- None Challenges ------------ None Game ------ Seed SystemReactiveModule Manual? 0 Play Time 00:36:03 Cumulative 54.3 hours Start 2023.04.28 @ 00:45:08 End 2023.04.28 @ 01:31:45 Sessions 1 Manual Loads 0 Difficulty Rogue Special Mode None Game No. 42 Rogue 42 Adventurer 0 Explorer 0 Win Type - Total 0 Types 0/0/0/0/0/0/0/0/0 Lore% 19 Gallery% 19 Achievement% 19 Wizard Run 0 Options --------- ASCII 0 Keyboard 0 Movement Numpad Keybinds 0 Fullscreen 1 Font 18/SmallcapsGlow Map View 76x50 Tactical HUD 0 Map Filters NONE Filters NONE Steam 1 RUN: 26667bce-e2d4-46a8-b60b-b13b8539f1e8